[Event "Titled Tuesday Blitz May 03 Early 2022"]
[White "Terzi, Alexei"]
[Black "Warchol, Kamil"]
[WhiteFideId "13505076"]
[BlackFideId "21858241"]
[WhiteElo "2031"]
[BlackElo "1910"]
[Result "1-0"]
[Round "10"]
[TimeControl "180+1"]
[Date "2022.05.03"]
[WhiteClock "0:00:40"]
[BlackClock "0:00:35"]

1. e4 {[%clk 0:03:00]}  c5 {[%clk 0:02:54]} 2. Nf3 {[%clk 0:02:57]}  e6 {[%clk 0:02:54]} 3. d3 {[%clk 0:02:52]}  Nc6 {[%clk 0:02:51]} 4. Nbd2 {[%clk 0:02:52]}  d5 {[%clk 0:02:50]} 5. Be2 {[%clk 0:02:49]}  Bd6 {[%clk 0:02:48]} 6. O-O {[%clk 0:02:49]}  Nge7 {[%clk 0:02:48]} 7. c3 {[%clk 0:02:48]}  O-O {[%clk 0:02:47]} 8. Qc2 {[%clk 0:02:48]}  Qc7 {[%clk 0:02:44]} 9. Rd1 {[%clk 0:02:47]}  b5 {[%clk 0:02:43]} 10. a3 {[%clk 0:02:46]}  a5 {[%clk 0:02:38]} 11. Nf1 {[%clk 0:02:47]}  Ba6 {[%clk 0:02:34]} 12. Ng3 {[%clk 0:02:44]}  Qb7 {[%clk 0:02:21]} 13. Bf1 {[%clk 0:02:41]}  b4 {[%clk 0:02:20]} 14. c4 {[%clk 0:02:13]}  Rfd8 {[%clk 0:02:06]} 15. Re1 {[%clk 0:02:11]}  dxc4 {[%clk 0:01:56]} 16. dxc4 {[%clk 0:02:09]}  Nd4 {[%clk 0:01:57]} 17. Nxd4 {[%clk 0:02:00]}  cxd4 {[%clk 0:01:58]} 18. e5 {[%clk 0:02:00]}  Bc7 {[%clk 0:01:50]} 19. Bd3 {[%clk 0:01:59]}  h6 {[%clk 0:01:49]} 20. Nh5 {[%clk 0:01:46]}  Qb8 {[%clk 0:01:33]} 21. Bf4 {[%clk 0:01:36]}  Bb7 {[%clk 0:01:19]} 22. Qe2 {[%clk 0:01:29]}  Kh8 {[%clk 0:01:08]} 23. Qg4 {[%clk 0:01:24]}  Rg8 {[%clk 0:01:08]} 24. Qh3 {[%clk 0:01:16]}  Bc6 {[%clk 0:01:01]} 25. Nf6 {[%clk 0:01:13]}  Nf5 {[%clk 0:00:44]} 26. Bxf5 {[%clk 0:01:09]}  exf5 {[%clk 0:00:45]} 27. Bxh6 {[%clk 0:01:06]}  Bxg2 {[%clk 0:00:35]} 28. Qh4 {[%clk 0:00:40]} 1-0


[Site "https://www.chess.com"]

[Event "Titled Tuesday Blitz May 03 Early 2022"]
[White "Thybo, Jesper Sondergaard"]
[Black "Odegov, Artem"]
[WhiteFideId "1438832"]
[BlackFideId "34183644"]
[WhiteElo "2316"]
[BlackElo "2286"]
[Result "1-0"]
[Round "10"]
[TimeControl "180+1"]
[Date "2022.05.03"]
[WhiteClock "0:01:30"]
[BlackClock "0:00:01"]

1. Nf3 {[%clk 0:03:00]}  d5 {[%clk 0:02:59]} 2. b3 {[%clk 0:03:01]}  c6 {[%clk 0:02:58]} 3. Bb2 {[%clk 0:03:01]}  Bf5 {[%clk 0:02:58]} 4. g3 {[%clk 0:03:01]}  Nf6 {[%clk 0:02:58]} 5. Bg2 {[%clk 0:03:02]}  e6 {[%clk 0:02:59]} 6. O-O {[%clk 0:03:02]}  h6 {[%clk 0:02:58]} 7. c4 {[%clk 0:03:03]}  Nbd7 {[%clk 0:02:58]} 8. d3 {[%clk 0:03:03]}  Be7 {[%clk 0:02:59]} 9. Nbd2 {[%clk 0:03:03]}  O-O {[%clk 0:02:59]} 10. a3 {[%clk 0:03:03]}  Bh7 {[%clk 0:02:58]} 11. b4 {[%clk 0:03:02]}  a5 {[%clk 0:02:58]} 12. Qb3 {[%clk 0:03:00]}  c5 {[%clk 0:02:57]} 13. b5 {[%clk 0:02:57]}  b6 {[%clk 0:02:56]} 14. a4 {[%clk 0:02:55]}  Qc7 {[%clk 0:02:56]} 15. Rfe1 {[%clk 0:02:51]}  Rad8 {[%clk 0:02:56]} 16. e4 {[%clk 0:02:50]}  d4 {[%clk 0:02:35]} 17. h3 {[%clk 0:02:38]}  e5 {[%clk 0:02:34]} 18. Nh4 {[%clk 0:02:36]}  g6 {[%clk 0:02:19]} 19. Rf1 {[%clk 0:02:34]}  Nh5 {[%clk 0:02:19]} 20. Nhf3 {[%clk 0:02:31]}  f5 {[%clk 0:02:19]} 21. Rae1 {[%clk 0:02:28]}  Bd6 {[%clk 0:02:16]} 22. exf5 {[%clk 0:02:26]}  gxf5 {[%clk 0:02:17]} 23. Nh4 {[%clk 0:02:25]}  Kh8 {[%clk 0:02:09]} 24. Qd1 {[%clk 0:02:25]}  Ndf6 {[%clk 0:02:06]} 25. Bc1 {[%clk 0:02:24]}  Rg8 {[%clk 0:01:54]} 26. Qf3 {[%clk 0:02:21]}  e4 {[%clk 0:01:33]} 27. dxe4 {[%clk 0:02:16]}  fxe4 {[%clk 0:01:34]} 28. Nxe4 {[%clk 0:02:16]}  Bxe4 {[%clk 0:00:46]} 29. Rxe4 {[%clk 0:02:14]}  Bxg3 {[%clk 0:00:45]} 30. fxg3 {[%clk 0:01:52]}  Rxg3 {[%clk 0:00:46]} 31. Qf5 {[%clk 0:01:48]}  Rdg8 {[%clk 0:00:07]} 32. Bf4 {[%clk 0:01:40]}  Qg7 {[%clk 0:00:04]} 33. Bxg3 {[%clk 0:01:37]}  Nxe4 {[%clk 0:00:01]} 34. Be5 {[%clk 0:01:30]} 1-0


[Site "https://www.chess.com"]

[Event "Titled Tuesday Blitz May 03 Early 2022"]
[White "Toncheva, Nadya"]
[Black "Delorme, Alban"]
[WhiteFideId "2924056"]
[BlackFideId "623636"]
[WhiteElo "1884"]
[BlackElo "2197"]
[Result "0-1"]
[Round "10"]
[TimeControl "180+1"]
[Date "2022.05.03"]
[WhiteClock "0:00:04"]
[BlackClock "0:01:26"]

1. e4 {[%clk 0:03:00]}  c5 {[%clk 0:03:00]} 2. c3 {[%clk 0:02:42]}  Nf6 {[%clk 0:02:56]} 3. e5 {[%clk 0:02:42]}  Nd5 {[%clk 0:02:56]} 4. Nf3 {[%clk 0:02:43]}  Nc6 {[%clk 0:02:57]} 5. Bc4 {[%clk 0:02:43]}  Nb6 {[%clk 0:02:57]} 6. Bb3 {[%clk 0:02:44]}  d5 {[%clk 0:02:57]} 7. exd6 {[%clk 0:02:44]}  Qxd6 {[%clk 0:02:57]} 8. O-O {[%clk 0:02:44]}  g6 {[%clk 0:02:57]} 9. d4 {[%clk 0:02:42]}  cxd4 {[%clk 0:02:55]} 10. cxd4 {[%clk 0:02:43]}  Bg7 {[%clk 0:02:55]} 11. Be3 {[%clk 0:02:41]}  O-O {[%clk 0:02:55]} 12. Nc3 {[%clk 0:02:40]}  Bg4 {[%clk 0:02:55]} 13. h3 {[%clk 0:01:56]}  Bxf3 {[%clk 0:02:53]} 14. Qxf3 {[%clk 0:01:57]}  Nxd4 {[%clk 0:02:52]} 15. Bxd4 {[%clk 0:01:56]}  Bxd4 {[%clk 0:02:53]} 16. Qxb7 {[%clk 0:01:55]}  Bxc3 {[%clk 0:02:50]} 17. bxc3 {[%clk 0:01:56]}  Qf6 {[%clk 0:02:45]} 18. Rac1 {[%clk 0:01:53]}  e6 {[%clk 0:02:45]} 19. Rfd1 {[%clk 0:01:51]}  Qf4 {[%clk 0:02:37]} 20. g3 {[%clk 0:01:46]}  Qf5 {[%clk 0:02:35]} 21. Kg2 {[%clk 0:01:44]}  Qc5 {[%clk 0:02:35]} 22. Qe4 {[%clk 0:01:39]}  a5 {[%clk 0:02:34]} 23. Qd4 {[%clk 0:01:34]}  Qc7 {[%clk 0:02:28]} 24. Rd2 {[%clk 0:01:17]}  a4 {[%clk 0:02:25]} 25. Bd1 {[%clk 0:01:16]}  Rad8 {[%clk 0:02:19]} 26. Qe3 {[%clk 0:00:51]}  Nc4 {[%clk 0:02:18]} 27. Qh6 {[%clk 0:00:47]}  Rxd2 {[%clk 0:02:15]} 28. Bxa4 {[%clk 0:00:47]}  Qb7+ {[%clk 0:02:14]} 29. Kg1 {[%clk 0:00:44]}  Qf3 {[%clk 0:02:14]} 30. Rf1 {[%clk 0:00:39]}  Rfd8 {[%clk 0:02:11]} 31. Bb5 {[%clk 0:00:35]}  Ne5 {[%clk 0:01:53]} 32. Qg5 {[%clk 0:00:30]}  f6 {[%clk 0:01:43]} 33. Qh4 {[%clk 0:00:25]}  Rd1 {[%clk 0:01:32]} 34. Qb4 {[%clk 0:00:16]}  Rxf1+ {[%clk 0:01:31]} 35. Bxf1 {[%clk 0:00:17]}  Rd1 {[%clk 0:01:30]} 36. Qb8+ {[%clk 0:00:17]}  Kg7 {[%clk 0:01:30]} 37. Qa7+ {[%clk 0:00:07]}  Nf7 {[%clk 0:01:29]} 38. h4 {[%clk 0:00:04]}  Qe2 {[%clk 0:01:26]} 0-1


[Site "https://www.chess.com"]

[Event "Titled Tuesday Blitz May 03 Early 2022"]
[White "Trost, Edvin"]
[Black "Balabayeva, Xeniya"]
[WhiteFideId "1729519"]
[BlackFideId "13719688"]
[WhiteElo "2160"]
[BlackElo "1941"]
[Result "1-0"]
[Round "10"]
[TimeControl "180+1"]
[Date "2022.05.03"]
[WhiteClock "0:01:20"]
[BlackClock "0:00:01"]

1. g4 {[%clk 0:02:54]}  d5 {[%clk 0:02:59]} 2. Bg2 {[%clk 0:02:49]}  c6 {[%clk 0:02:55]} 3. c4 {[%clk 0:02:46]}  e6 {[%clk 0:02:51]} 4. d4 {[%clk 0:02:42]}  h5 {[%clk 0:02:46]} 5. g5 {[%clk 0:02:40]}  Bd6 {[%clk 0:02:42]} 6. Nf3 {[%clk 0:02:38]}  Ne7 {[%clk 0:02:40]} 7. Nc3 {[%clk 0:02:35]}  Ng6 {[%clk 0:02:38]} 8. h4 {[%clk 0:02:31]}  dxc4 {[%clk 0:02:30]} 9. Nd2 {[%clk 0:02:28]}  Bc7 {[%clk 0:01:45]} 10. Nxc4 {[%clk 0:02:25]}  Nd7 {[%clk 0:01:36]} 11. b3 {[%clk 0:02:14]}  Nb6 {[%clk 0:01:35]} 12. Ba3 {[%clk 0:02:08]}  Nd5 {[%clk 0:01:09]} 13. Ne4 {[%clk 0:02:05]}  Nge7 {[%clk 0:00:35]} 14. Ned6+ {[%clk 0:02:01]}  Bxd6 {[%clk 0:00:34]} 15. Nxd6+ {[%clk 0:02:01]}  Kf8 {[%clk 0:00:34]} 16. Qd2 {[%clk 0:02:01]}  Bd7 {[%clk 0:00:14]} 17. e4 {[%clk 0:01:39]}  Nb6 {[%clk 0:00:09]} 18. Qf4 {[%clk 0:01:37]}  Be8 {[%clk 0:00:08]} 19. Nxb7 {[%clk 0:01:25]}  Qxd4 {[%clk 0:00:07]} 20. O-O {[%clk 0:01:25]}  e5 {[%clk 0:00:03]} 21. Qg3 {[%clk 0:01:22]}  Qd7 {[%clk 0:00:03]} 22. Nc5 {[%clk 0:01:21]}  Qc7 {[%clk 0:00:02]} 23. f4 {[%clk 0:01:21]}  exf4 {[%clk 0:00:01]} 24. Rxf4 {[%clk 0:01:21]}  Kg8 {[%clk 0:00:01]} 25. Ne6 {[%clk 0:01:20]} 1-0


[Site "https://www.chess.com"]

[Event "Titled Tuesday Blitz May 03 Early 2022"]
[White "Vagman, Roy"]
[Black "Piliczewski, Bogusz"]
[WhiteFideId "2828995"]
[BlackFideId "1104144"]
[WhiteElo "1927"]
[BlackElo "1896"]
[Result "1-0"]
[Round "10"]
[TimeControl "180+1"]
[Date "2022.05.03"]
[WhiteClock "0:02:17"]
[BlackClock "0:00:29"]

1. Nf3 {[%clk 0:03:00]}  d5 {[%clk 0:02:58]} 2. Nc3 {[%clk 0:02:58]}  Nf6 {[%clk 0:02:58]} 3. e3 {[%clk 0:02:57]}  Bf5 {[%clk 0:02:57]} 4. d4 {[%clk 0:02:58]}  e6 {[%clk 0:02:54]} 5. Ne2 {[%clk 0:02:57]}  h6 {[%clk 0:02:53]} 6. Ng3 {[%clk 0:02:56]}  Bh7 {[%clk 0:02:52]} 7. Bd3 {[%clk 0:02:57]}  Ne4 {[%clk 0:02:47]} 8. O-O {[%clk 0:02:54]}  Bd6 {[%clk 0:02:45]} 9. c3 {[%clk 0:02:52]}  O-O {[%clk 0:02:39]} 10. Qc2 {[%clk 0:02:52]}  f5 {[%clk 0:02:39]} 11. Ne5 {[%clk 0:02:50]}  Bxe5 {[%clk 0:02:30]} 12. dxe5 {[%clk 0:02:49]}  Nd7 {[%clk 0:02:30]} 13. f4 {[%clk 0:02:49]}  c5 {[%clk 0:02:21]} 14. c4 {[%clk 0:02:48]}  Rc8 {[%clk 0:02:17]} 15. b3 {[%clk 0:02:47]}  a6 {[%clk 0:02:15]} 16. Bb2 {[%clk 0:02:48]}  Kh8 {[%clk 0:01:59]} 17. Rad1 {[%clk 0:02:47]}  Bg8 {[%clk 0:01:58]} 18. Nxe4 {[%clk 0:02:33]}  fxe4 {[%clk 0:01:51]} 19. Be2 {[%clk 0:02:33]}  Qe7 {[%clk 0:01:46]} 20. Bg4 {[%clk 0:02:32]}  b6 {[%clk 0:01:36]} 21. g3 {[%clk 0:02:28]}  Rcd8 {[%clk 0:01:34]} 22. cxd5 {[%clk 0:02:24]}  exd5 {[%clk 0:01:33]} 23. Qc3 {[%clk 0:02:24]}  Be6 {[%clk 0:01:29]} 24. f5 {[%clk 0:02:22]}  Bg8 {[%clk 0:01:24]} 25. f6 {[%clk 0:02:22]}  Qxe5 {[%clk 0:01:00]} 26. Qxe5 {[%clk 0:02:20]}  Nxe5 {[%clk 0:01:00]} 27. fxg7+ {[%clk 0:02:21]}  Kxg7 {[%clk 0:00:59]} 28. Bxe5+ {[%clk 0:02:21]}  Kg6 {[%clk 0:00:58]} 29. h4 {[%clk 0:02:21]}  h5 {[%clk 0:00:56]} 30. Be2 {[%clk 0:02:18]}  Be6 {[%clk 0:00:54]} 31. Bxa6 {[%clk 0:02:18]}  Rf5 {[%clk 0:00:45]} 32. Rxf5 {[%clk 0:02:17]}  Kxf5 {[%clk 0:00:43]} 33. Bf4 {[%clk 0:02:17]}  Kg4 {[%clk 0:00:42]} 34. Kg2 {[%clk 0:02:16]}  Ra8 {[%clk 0:00:38]} 35. Be2+ {[%clk 0:02:14]}  Kf5 {[%clk 0:00:36]} 36. a4 {[%clk 0:02:15]}  Bf7 {[%clk 0:00:35]} 37. Rf1 {[%clk 0:02:14]}  Ke6 {[%clk 0:00:34]} 38. g4 {[%clk 0:02:15]}  hxg4 {[%clk 0:00:32]} 39. Bxg4+ {[%clk 0:02:16]}  Ke7 {[%clk 0:00:32]} 40. Bg5+ {[%clk 0:02:16]}  Ke8 {[%clk 0:00:31]} 41. Rf6 {[%clk 0:02:17]}  Rc8 {[%clk 0:00:29]} 42. Bxc8 {[%clk 0:02:17]} 1-0


[Site "https://www.chess.com"]

[Event "Titled Tuesday Blitz May 03 Early 2022"]
[White "Vifleemskaia, Svetlana"]
[Black "Perez Molina, Robinson"]
[WhiteFideId "4129490"]
[BlackFideId "3403882"]
[WhiteElo "1901"]
[BlackElo "2252"]
[Result "0-1"]
[Round "10"]
[TimeControl "180+1"]
[Date "2022.05.03"]
[WhiteClock "0:00:22"]
[BlackClock "0:00:38"]

1. d4 {[%clk 0:03:00]}  Nf6 {[%clk 0:02:51]} 2. c4 {[%clk 0:03:00]}  e6 {[%clk 0:02:49]} 3. Nc3 {[%clk 0:03:00]}  Bb4 {[%clk 0:02:49]} 4. e4 {[%clk 0:03:00]}  Nxe4 {[%clk 0:02:48]} 5. Qd3 {[%clk 0:02:58]}  d5 {[%clk 0:02:46]} 6. Nf3 {[%clk 0:02:50]}  O-O {[%clk 0:02:45]} 7. Be2 {[%clk 0:02:48]}  b6 {[%clk 0:02:40]} 8. a3 {[%clk 0:02:43]}  Bxc3+ {[%clk 0:02:35]} 9. bxc3 {[%clk 0:02:44]}  Ba6 {[%clk 0:02:35]} 10. Qe3 {[%clk 0:02:39]}  Nd7 {[%clk 0:02:24]} 11. O-O {[%clk 0:02:35]}  Ndf6 {[%clk 0:02:15]} 12. Ne5 {[%clk 0:02:33]}  dxc4 {[%clk 0:02:13]} 13. Nc6 {[%clk 0:02:15]}  Qd6 {[%clk 0:02:09]} 14. Nb4 {[%clk 0:02:12]}  Bb7 {[%clk 0:01:54]} 15. Bxc4 {[%clk 0:02:10]}  a5 {[%clk 0:01:44]} 16. Nc2 {[%clk 0:02:06]}  Qc6 {[%clk 0:01:40]} 17. f3 {[%clk 0:01:57]}  Qxc4 {[%clk 0:01:39]} 18. fxe4 {[%clk 0:01:57]}  Nxe4 {[%clk 0:01:36]} 19. Bd2 {[%clk 0:01:53]}  Nxd2 {[%clk 0:01:32]} 20. Qxd2 {[%clk 0:01:53]}  Rad8 {[%clk 0:01:30]} 21. Ne3 {[%clk 0:01:53]}  Qa4 {[%clk 0:01:24]} 22. Rf4 {[%clk 0:01:47]}  c5 {[%clk 0:01:22]} 23. Ng4 {[%clk 0:01:27]}  cxd4 {[%clk 0:01:16]} 24. cxd4 {[%clk 0:01:26]}  Kh8 {[%clk 0:00:58]} 25. Qe3 {[%clk 0:01:18]}  Qc6 {[%clk 0:00:54]} 26. Rf2 {[%clk 0:01:11]}  f6 {[%clk 0:00:52]} 27. Re1 {[%clk 0:01:09]}  Rfe8 {[%clk 0:00:52]} 28. h4 {[%clk 0:01:08]}  Qd5 {[%clk 0:00:47]} 29. Nh6 {[%clk 0:00:22]}  Qh5 {[%clk 0:00:38]} 0-1


[Site "https://www.chess.com"]

[Event "Titled Tuesday Blitz May 03 Early 2022"]
[White "Vignesh, N R"]
[Black "Al-Tarboush, Ward"]
[WhiteFideId "25012215"]
[BlackFideId "7601450"]
[WhiteElo "2363"]
[BlackElo "2276"]
[Result "1-0"]
[Round "10"]
[TimeControl "180+1"]
[Date "2022.05.03"]
[WhiteClock "0:00:33"]
[BlackClock "0:01:01"]

1. Nf3 {[%clk 0:03:00]}  d5 {[%clk 0:02:49]} 2. g3 {[%clk 0:03:00]}  Nf6 {[%clk 0:02:48]} 3. Bg2 {[%clk 0:03:01]}  Nc6 {[%clk 0:02:47]} 4. O-O {[%clk 0:03:02]}  e5 {[%clk 0:02:47]} 5. d3 {[%clk 0:03:01]}  Be7 {[%clk 0:02:46]} 6. e4 {[%clk 0:03:01]}  O-O {[%clk 0:02:46]} 7. exd5 {[%clk 0:02:57]}  Nxd5 {[%clk 0:02:46]} 8. Re1 {[%clk 0:02:57]}  Bf6 {[%clk 0:02:45]} 9. Nbd2 {[%clk 0:02:54]}  Re8 {[%clk 0:02:36]} 10. Ne4 {[%clk 0:02:53]}  Bf5 {[%clk 0:02:34]} 11. Nxf6+ {[%clk 0:02:52]}  Qxf6 {[%clk 0:02:32]} 12. Bg5 {[%clk 0:02:49]}  Qd6 {[%clk 0:02:27]} 13. Nd2 {[%clk 0:02:47]}  h6 {[%clk 0:02:23]} 14. Nc4 {[%clk 0:02:46]}  Qd7 {[%clk 0:02:19]} 15. Bd2 {[%clk 0:02:44]}  Rad8 {[%clk 0:02:18]} 16. Qh5 {[%clk 0:02:40]}  Nf6 {[%clk 0:02:06]} 17. Qh4 {[%clk 0:02:32]}  e4 {[%clk 0:01:57]} 18. Bxh6 {[%clk 0:02:18]}  exd3 {[%clk 0:01:57]} 19. cxd3 {[%clk 0:02:11]}  Qxd3 {[%clk 0:01:48]} 20. Ne3 {[%clk 0:01:56]}  Bg6 {[%clk 0:01:47]} 21. Rad1 {[%clk 0:01:46]}  Qb5 {[%clk 0:01:46]} 22. Bg5 {[%clk 0:01:45]}  Rxd1 {[%clk 0:01:42]} 23. Rxd1 {[%clk 0:01:46]}  Qxb2 {[%clk 0:01:39]} 24. Bxf6 {[%clk 0:01:44]}  Qxf6 {[%clk 0:01:38]} 25. Qxf6 {[%clk 0:01:43]}  gxf6 {[%clk 0:01:39]} 26. Nd5 {[%clk 0:01:44]}  Kg7 {[%clk 0:01:33]} 27. Nxc7 {[%clk 0:01:44]}  Re2 {[%clk 0:01:32]} 28. Ra1 {[%clk 0:01:41]}  Nb4 {[%clk 0:01:21]} 29. Bxb7 {[%clk 0:01:30]}  Rxa2 {[%clk 0:01:19]} 30. Rxa2 {[%clk 0:01:28]}  Nxa2 {[%clk 0:01:20]} 31. Ne8+ {[%clk 0:01:28]}  Kf8 {[%clk 0:01:20]} 32. Nxf6 {[%clk 0:01:29]}  a5 {[%clk 0:01:20]} 33. h4 {[%clk 0:01:24]}  a4 {[%clk 0:01:18]} 34. h5 {[%clk 0:01:20]}  Nc3 {[%clk 0:01:19]} 35. hxg6 {[%clk 0:00:43]}  a3 {[%clk 0:01:18]} 36. Nd7+ {[%clk 0:00:43]}  Kg7 {[%clk 0:01:15]} 37. gxf7 {[%clk 0:00:43]}  Kxf7 {[%clk 0:01:13]} 38. Nc5 {[%clk 0:00:43]}  Ne2+ {[%clk 0:01:11]} 39. Kf1 {[%clk 0:00:41]}  Nc1 {[%clk 0:01:12]} 40. Bd5+ {[%clk 0:00:37]}  Ke7 {[%clk 0:01:12]} 41. Nb3 {[%clk 0:00:36]}  Nd3 {[%clk 0:01:01]} 42. Na1 {[%clk 0:00:33]} 1-0


[Site "https://www.chess.com"]

[Event "Titled Tuesday Blitz May 03 Early 2022"]
[White "Vovk, Orest"]
[Black "Rosen, Eric"]
[WhiteFideId "14113490"]
[BlackFideId "2032562"]
[WhiteElo "2203"]
[BlackElo "2362"]
[Result "0-1"]
[Round "10"]
[TimeControl "180+1"]
[Date "2022.05.03"]
[WhiteClock "0:00:57"]
[BlackClock "0:00:58"]

1. h4 {[%clk 0:03:00]}  d5 {[%clk 0:02:55]} 2. h5 {[%clk 0:03:01]}  h6 {[%clk 0:02:54]} 3. e4 {[%clk 0:03:01]}  dxe4 {[%clk 0:02:46]} 4. Nc3 {[%clk 0:03:01]}  Nf6 {[%clk 0:02:37]} 5. Qe2 {[%clk 0:03:01]}  Bf5 {[%clk 0:02:32]} 6. Qb5+ {[%clk 0:03:02]}  Bd7 {[%clk 0:02:32]} 7. Qxb7 {[%clk 0:03:02]}  Nc6 {[%clk 0:02:33]} 8. Bb5 {[%clk 0:03:02]}  Rb8 {[%clk 0:02:32]} 9. Qxc6 {[%clk 0:03:02]}  Bxc6 {[%clk 0:02:32]} 10. Bxc6+ {[%clk 0:03:03]}  Nd7 {[%clk 0:02:32]} 11. Nxe4 {[%clk 0:03:03]}  Rb6 {[%clk 0:02:25]} 12. Ba4 {[%clk 0:03:03]}  e6 {[%clk 0:02:15]} 13. Nf3 {[%clk 0:03:01]}  Be7 {[%clk 0:02:15]} 14. Ne5 {[%clk 0:02:58]}  c6 {[%clk 0:02:08]} 15. Nxd7 {[%clk 0:02:42]}  Qxd7 {[%clk 0:02:06]} 16. d3 {[%clk 0:02:32]}  O-O {[%clk 0:02:03]} 17. Bb3 {[%clk 0:02:25]}  a5 {[%clk 0:02:00]} 18. Be3 {[%clk 0:02:24]}  Rbb8 {[%clk 0:01:59]} 19. Nc5 {[%clk 0:02:18]}  Qc8 {[%clk 0:01:36]} 20. Rh3 {[%clk 0:02:05]}  Rd8 {[%clk 0:01:32]} 21. Rg3 {[%clk 0:02:01]}  Kf8 {[%clk 0:01:32]} 22. Rf3 {[%clk 0:01:55]}  Bxc5 {[%clk 0:01:22]} 23. Bxc5+ {[%clk 0:01:54]}  Kg8 {[%clk 0:01:23]} 24. Kf1 {[%clk 0:01:39]}  Rb5 {[%clk 0:01:18]} 25. Be3 {[%clk 0:01:27]}  Rxh5 {[%clk 0:01:16]} 26. Ke2 {[%clk 0:01:18]}  Qb8 {[%clk 0:01:10]} 27. Bf4 {[%clk 0:01:13]}  Qb4 {[%clk 0:01:04]} 28. Bd2 {[%clk 0:01:10]}  Re5+ {[%clk 0:01:02]} 29. Be3 {[%clk 0:01:04]}  a4 {[%clk 0:01:01]} 30. Bxa4 {[%clk 0:01:03]}  Qxa4 {[%clk 0:00:59]} 31. Rf4 {[%clk 0:00:57]}  Qxf4 {[%clk 0:00:58]} 0-1


[Site "https://www.chess.com"]

[Event "Titled Tuesday Blitz May 03 Early 2022"]
[White "Wong, Yinn Long"]
[Black "Oganian, Miran"]
[WhiteFideId "5707684"]
[BlackFideId "4122488"]
[WhiteElo "2055"]
[BlackElo "2357"]
[Result "0-1"]
[Round "10"]
[TimeControl "180+1"]
[Date "2022.05.03"]
[WhiteClock "0:00:02"]
[BlackClock "0:01:22"]

1. Nf3 {[%clk 0:03:00]}  d5 {[%clk 0:02:59]} 2. b3 {[%clk 0:03:01]}  Nf6 {[%clk 0:02:59]} 3. Bb2 {[%clk 0:03:01]}  g6 {[%clk 0:03:00]} 4. e3 {[%clk 0:03:01]}  Bg7 {[%clk 0:03:00]} 5. d4 {[%clk 0:03:01]}  O-O {[%clk 0:03:00]} 6. c4 {[%clk 0:03:02]}  Ne4 {[%clk 0:03:00]} 7. Bd3 {[%clk 0:02:50]}  c5 {[%clk 0:02:59]} 8. cxd5 {[%clk 0:02:21]}  Qxd5 {[%clk 0:03:00]} 9. O-O {[%clk 0:02:16]}  Nc6 {[%clk 0:02:58]} 10. Bxe4 {[%clk 0:01:57]}  Qxe4 {[%clk 0:02:57]} 11. Nc3 {[%clk 0:01:58]}  Qg4 {[%clk 0:02:50]} 12. dxc5 {[%clk 0:01:53]}  Qh5 {[%clk 0:02:38]} 13. Rc1 {[%clk 0:01:47]}  Rd8 {[%clk 0:02:32]} 14. Qe2 {[%clk 0:01:43]}  Bg4 {[%clk 0:02:29]} 15. h3 {[%clk 0:01:39]}  Bxf3 {[%clk 0:02:29]} 16. Qxf3 {[%clk 0:01:40]}  Qxf3 {[%clk 0:02:29]} 17. gxf3 {[%clk 0:01:40]}  Ne5 {[%clk 0:02:30]} 18. Rc2 {[%clk 0:01:18]}  Rac8 {[%clk 0:02:09]} 19. f4 {[%clk 0:00:56]}  Nd3 {[%clk 0:02:07]} 20. Ba3 {[%clk 0:00:57]}  Nxc5 {[%clk 0:01:57]} 21. Bxc5 {[%clk 0:00:57]}  Rxc5 {[%clk 0:01:57]} 22. Rfc1 {[%clk 0:00:31]}  Rdc8 {[%clk 0:01:57]} 23. Rd1 {[%clk 0:00:24]}  Rxc3 {[%clk 0:01:56]} 24. Rxc3 {[%clk 0:00:25]}  Rxc3 {[%clk 0:01:48]} 25. Rd7 {[%clk 0:00:26]}  a5 {[%clk 0:01:44]} 26. Rxe7 {[%clk 0:00:20]}  b5 {[%clk 0:01:43]} 27. Ra7 {[%clk 0:00:21]}  Rc1+ {[%clk 0:01:40]} 28. Kg2 {[%clk 0:00:20]}  Bc3 {[%clk 0:01:41]} 29. Rb7 {[%clk 0:00:20]}  b4 {[%clk 0:01:40]} 30. Ra7 {[%clk 0:00:19]}  Rc2 {[%clk 0:01:40]} 31. Rxa5 {[%clk 0:00:19]}  Be1 {[%clk 0:01:40]} 32. Kf3 {[%clk 0:00:19]}  f5 {[%clk 0:01:39]} 33. Ra8+ {[%clk 0:00:15]}  Kg7 {[%clk 0:01:38]} 34. Ra7+ {[%clk 0:00:16]}  Kh6 {[%clk 0:01:39]} 35. e4 {[%clk 0:00:12]}  Rxf2+ {[%clk 0:01:36]} 36. Ke3 {[%clk 0:00:12]}  Rh2 {[%clk 0:01:36]} 37. Re7 {[%clk 0:00:08]}  fxe4 {[%clk 0:01:29]} 38. Rxe4 {[%clk 0:00:06]}  Rxh3+ {[%clk 0:01:29]} 39. Ke2 {[%clk 0:00:07]}  Bc3 {[%clk 0:01:28]} 40. Rc4 {[%clk 0:00:07]}  Rh2+ {[%clk 0:01:28]} 41. Kf3 {[%clk 0:00:07]}  Rxa2 {[%clk 0:01:29]} 42. Kg4 {[%clk 0:00:07]}  Rg2+ {[%clk 0:01:28]} 43. Kh4 {[%clk 0:00:06]}  Rb2 {[%clk 0:01:29]} 44. f5 {[%clk 0:00:06]}  Rxb3 {[%clk 0:01:23]} 45. fxg6 {[%clk 0:00:04]}  hxg6 {[%clk 0:01:24]} 46. Kg4 {[%clk 0:00:04]}  Rb1 {[%clk 0:01:23]} 47. Rc8 {[%clk 0:00:03]}  b3 {[%clk 0:01:23]} 48. Kh4 {[%clk 0:00:03]}  b2 {[%clk 0:01:23]} 49. Rxc3 {[%clk 0:00:02]}  Rh1+ {[%clk 0:01:22]} 0-1


[Site "https://www.chess.com"]